bitfinex-derivatives/quotes_SOLF0:USTF0_20241101
["timestamp","ask_amount","ask_price","bid_price","bid_amount"]
[1730485533775,3.003,166.56,166.52,14.53990003]
[1730485534181,2.6745,166.61,166.52,11.53630003]
[1730485534480,3.0032,166.55,166.52,11.53630003]
[1730485535988,3.0032,166.55,166.52,14.53990003]
[1730485536780,2.6745,166.61,166.52,14.53990003]
[1730485538283,3.003,166.56,166.52,14.53990003]
[1730485539088,2.6745,166.61,166.52,11.53630003]
[1730485539290,3.0033,166.54,166.52,11.53630003]
[1730485539479,2.6745,166.61,166.52,11.53630003]
[1730485539675,3.0031,166.56,166.52,14.53990003]
[1730485540787,3.0032,166.55,166.52,11.53630003]
[1730485541093,14.21080003,166.61,166.52,11.53630003]
[1730485541585,3.0032,166.55,166.52,11.53630003]
[1730485542382,3.0028,166.57,166.53,3.0033]
[1730485542582,14.21080003,166.61,166.52,11.53630003]
[1730485544196,2.6745,166.61,166.52,14.53990003]
[1730485544396,2.6745,166.61,166.52,11.53630003]
[1730485544698,3.0025,166.59,166.53,3.0033]
[1730485544896,2.6745,166.61,166.53,3.0033]
[1730485545196,3.0028,166.57,166.53,3.0033]
[1730485547095,3.0028,166.57,166.52,11.53630003]
[1730485547288,1.286,166.64,166.56,11.53630003]
[1730485547494,1.286,166.64,166.51,14.50253289]
[1730485547495,6.138,166.68,166.59,11.53630003]
[1730485547801,3.0017,166.63,166.59,14.53860003]
[1730485549101,7.5193,166.68,166.61,3.0019]
[1730485549802,3.0012,166.66,166.61,3.0019]
[1730485550097,3.0012,166.66,166.62,14.53800003]
[1730485551099,3.001,166.67,166.62,14.53800003]
[1730485552902,2.6601,166.68,166.62,11.53630003]
[1730485553196,2.6601,166.68,166.6,15.13630003]
[1730485553197,3.0016,166.64,166.6,15.13630003]
[1730485554504,3.002,166.62,166.6,11.53630003]
[1730485554686,1.2845,166.67,166.6,11.53630003]
[1730485554892,1.2845,166.67,166.58,3.56]
[1730485555495,1.2845,166.67,166.58,6.5625]
[1730485555691,3.0018,166.63,166.58,6.5625]
[1730485556003,1.2845,166.67,166.58,6.5625]
[1730485556409,12.82080003,166.67,166.57,11.53630003]
[1730485556709,11.53630003,166.65,166.55,15.09630003]
[1730485556912,11.53630003,166.65,166.55,18.09930003]
[1730485557517,3.0024,166.6,166.55,18.09930003]
[1730485557809,11.53630003,166.65,166.55,18.09930003]
[1730485558005,3.0025,166.59,166.55,18.09930003]
[1730485560617,12.82080003,166.67,166.57,11.53630003]
[1730485561203,1.2845,166.67,166.59,14.53860003]
[1730485562014,3.0018,166.63,166.59,14.53860003]
[1730485562710,3.0014,166.65,166.6,3.0021]
[1730485563007,1.3813,166.68,166.61,11.53630003]
[1730485563511,3.0012,166.66,166.62,3.0018]
[1730485563714,1.3813,166.68,166.61,11.53630003]
[1730485564006,3.0011,166.66,166.61,14.53820003]
[1730485564215,1.3813,166.68,166.61,11.53630003]
[1730485564402,1.3813,166.68,166.6,3.56]
[1730485564403,2.7438,166.72,166.63,11.53630003]
[1730485564709,3.001,166.67,166.63,14.53790003]
[1730485565006,2.7438,166.72,166.63,11.53630003]
[1730485565601,3.0012,166.66,166.62,3.0018]
[1730485566512,14.28010003,166.72,166.61,14.53820003]
[1730485567513,3.0012,166.66,166.61,14.53820003]
[1730485568109,14.28010003,166.72,166.61,14.53820003]
[1730485570302,3.0013,166.66,166.61,14.53820003]
[1730485571408,3.0013,166.65,166.61,14.53820003]
[1730485573609,3.002,166.62,166.59,11.53630003]
[1730485573813,11.53630003,166.7,166.59,11.53630003]
[1730485574512,3.0019,166.62,166.59,11.53630003]
[1730485577712,11.53630003,166.7,166.59,11.53630003]
[1730485577908,6.0005,166.71,166.62,11.53630003]
[1730485578223,9.5605,166.71,166.62,11.53630003]
[1730485578417,3.0014,166.65,166.62,11.53630003]
[1730485579011,3.56,166.71,166.62,11.53630003]
[1730485579213,3.0011,166.67,166.63,3.0016]
[1730485580107,3.0011,166.66,166.62,14.53810003]
[1730485583407,3.56,166.71,166.62,14.53810003]
[1730485583408,3.56,166.71,166.62,11.53630003]
[1730485583610,3.0012,166.66,166.62,14.53810003]
[1730485584017,3.0007,166.69,166.65,3.0013]
[1730485584321,2.7438,166.72,166.64,11.53630003]
[1730485584517,3.0005,166.7,166.65,3.0012]
[1730485584816,2.7438,166.72,166.64,11.53630003]
[1730485585033,2.7438,166.72,166.61,3.56]
[1730485585225,11.53630003,166.69,166.59,15.09630003]
[1730485585420,11.53630003,166.67,166.57,11.53630003]
[1730485585613,1.3427,166.68,166.56,3.56]
[1730485585614,3.0027,166.58,166.56,3.56]
[1730485586521,11.53630003,166.63,166.54,3.56]
[1730485587923,11.53630003,166.63,166.53,11.53630003]
[1730485588828,11.53630003,166.61,166.52,3.56]
[1730485589013,1.3391,166.6,166.52,3.56]
[1730485589420,1.3391,166.6,166.51,11.53630003]
[1730485590817,3.0031,166.56,166.51,11.53630003]
[1730485592223,3.0031,166.56,166.51,14.54010003]
[1730485594024,1.3391,166.6,166.53,11.53630003]
[1730485596128,1.3391,166.6,166.51,11.53630003]
[1730485597837,3.0028,166.57,166.53,3.0033]
[1730485598132,1.3391,166.6,166.53,11.53630003]
[1730485599122,3.0023,166.6,166.55,3.003]
[1730485599333,11.53630003,166.63,166.55,3.003]
[1730485599638,3.0021,166.61,166.55,3.003]
[1730485599831,11.53630003,166.63,166.55,3.003]
[1730485600329,3.0024,166.59,166.55,3.003]
[1730485601334,3.0027,166.58,166.54,3.0032]
[1730485601739,11.53630003,166.63,166.54,3.0032]
[1730485602539,3.0025,166.59,166.54,3.0032]
[1730485605234,3.0026,166.58,166.54,3.0032]
[1730485606333,3.0024,166.6,166.53,11.53630003]
[1730485606928,3.0024,166.59,166.55,3.003]
[1730485607129,3.0024,166.59,166.55,6.563]
[1730485608043,2.6955,166.64,166.51,11.53630003]
[1730485608338,2.6955,166.64,166.52,3.0036]
[1730485608339,3.0031,166.56,166.52,3.0036]
[1730485608939,3.0031,166.56,166.53,3.0034]
[1730485609136,3.0028,166.57,166.53,3.0034]
[1730485609840,1.3849,166.59,166.53,3.0034]
[1730485610043,3.0029,166.56,166.53,3.0034]
[1730485611844,3.0027,166.58,166.55,3.003]
[1730485616841,3.0027,166.58,166.54,3.0032]
[1730485618651,1.3849,166.59,166.54,3.0032]
[1730485618945,1.3849,166.59,166.52,3.0035]
[1730485619339,3.0031,166.56,166.52,3.0035]
[1730485619542,3.0031,166.56,166.51,3.56]
[1730485619543,3.0031,166.56,166.53,3.0034]
[1730485620439,1.3849,166.59,166.48,11.53630003]
[1730485620742,1.3849,166.59,166.51,3.0037]
[1730485621138,3.0032,166.55,166.51,3.0037]
[1730485621661,4.3874,166.59,166.51,11.53630003]
[1730485621843,1.3849,166.59,166.53,11.53630003]
[1730485623248,3.0028,166.57,166.54,3.0032]
[1730485623449,3.0028,166.57,166.49,3.56]
[1730485623450,1.3849,166.59,166.51,11.53630003]
[1730485623647,1.3849,166.59,166.49,3.56]
[1730485623959,1.3849,166.59,166.49,6.5641]
[1730485623960,3.0035,166.53,166.49,6.5641]
[1730485624455,3.0037,166.52,166.49,3.56]
[1730485624642,2.6876,166.57,166.46,11.53630003]
[1730485624643,11.53630003,166.56,166.46,11.53630003]
[1730485624954,3.0041,166.5,166.46,19.60338083]
[1730485625152,3.0041,166.5,166.46,18.10090003]
[1730485625843,11.53630003,166.56,166.47,3.0045]
[1730485625844,3.0038,166.51,166.47,3.0045]
[1730485626045,2.6876,166.57,166.49,11.53630003]
[1730485626454,3.0034,166.54,166.49,14.54040003]
[1730485626651,2.6876,166.57,166.49,14.54040003]
[1730485627357,3.0035,166.53,166.49,14.54040003]
[1730485627751,2.6876,166.57,166.49,11.53630003]
[1730485628055,2.6876,166.57,166.51,11.53630003]
[1730485628445,1.3227,166.57,166.51,15.09630003]
[1730485629250,3.003,166.56,166.52,3.0035]
[1730485629753,3.0028,166.57,166.53,3.0034]
[1730485630558,1.3849,166.59,166.51,15.09630003]
[1730485630754,3.0027,166.58,166.51,15.09630003]
[1730485631265,4.3873,166.59,166.51,15.09630003]
[1730485631461,4.3873,166.59,166.53,11.53630003]
[1730485632358,4.3873,166.59,166.55,3.0031]
[1730485632557,3.0026,166.58,166.53,11.53630003]
[1730485632970,1.3849,166.59,166.53,11.53630003]
[1730485633167,4.3874,166.59,166.53,11.53630003]
[1730485634164,1.3849,166.59,166.53,11.53630003]
[1730485634470,3.0026,166.58,166.53,11.53630003]
[1730485635272,3.0026,166.58,166.54,3.0032]
[1730485636563,1.3849,166.59,166.53,11.53630003]
[1730485636965,1.3873,166.64,166.55,11.53630003]
[1730485637169,1.3873,166.64,166.57,11.53630003]
[1730485637468,3.0018,166.63,166.59,3.0023]
[1730485637867,2.6077,166.65,166.57,11.53630003]
[1730485638069,3.0016,166.64,166.59,3.0022]
[1730485638368,2.6077,166.65,166.57,11.53630003]
[1730485638670,3.0015,166.64,166.57,11.53630003]
[1730485638966,2.6077,166.65,166.57,11.53630003]
[1730485639273,5.6091,166.65,166.6,11.53630003]
[1730485639673,1.3578,166.65,166.6,11.53630003]
[1730485639972,3.0016,166.64,166.6,11.53630003]
[1730485640164,1.3578,166.65,166.57,11.53630003]
[1730485640358,3.0019,166.62,166.57,11.53630003]
[1730485641471,3.0019,166.62,166.56,3.56]
[1730485641472,3.0021,166.61,166.56,3.56]
[1730485642071,3.0021,166.61,166.58,3.0025]
[1730485645465,3.0021,166.61,166.56,3.56]
[1730485645466,1.3578,166.65,166.56,3.56]
[1730485645670,12.89410003,166.65,166.55,14.53930003]
[1730485645870,12.89410003,166.65,166.55,11.53630003]
[1730485646482,12.89410003,166.65,166.56,3.0029]
[1730485646978,3.0024,166.6,166.56,3.0029]
[1730485647670,1.3578,166.65,166.58,3.0024]
[1730485647872,1.3578,166.65,166.57,11.53630003]
[1730485648177,3.0017,166.63,166.59,3.0022]
[1730485649975,11.53630003,166.69,166.6,3.56]
[1730485650166,26.62060816,166.71,166.62,3.0017]
[1730485650371,15.48250003,166.71,166.6,3.56]
[1730485650768,15.48250003,166.71,166.61,3.0019]
[1730485651479,3.0014,166.65,166.61,3.0019]
[1730485655877,11.53630003,166.71,166.61,3.0019]
[1730485656078,225.0,166.86,166.61,3.0019]
[1730485656079,2.9993,166.76,166.69,14.53670003]
[1730485656269,11.53630003,166.79,166.7,3.56]
[1730485656471,11.13323315,166.81,166.7,3.56]
[1730485656672,0.97483225,166.8,166.7,3.56]
[1730485657171,14.19390003,166.82,166.72,11.53630003]
[1730485657883,2.9986,166.8,166.74,2.9997]
[1730485659074,2.9986,166.8,166.75,3.54]
[1730485659583,11.53630003,166.94,166.79,11.53630003]
[1730485659783,11.53630003,166.94,166.84,11.53630003]
[1730485659784,3.89,166.92,166.84,11.53630003]
[1730485660082,0.9740607,166.91,166.85,3.54]
[1730485660486,3.89,166.92,166.85,3.54]
[1730485662289,2.9968,166.9,166.85,3.54]
[1730485662690,11.53630003,166.94,166.85,3.54]
[1730485662890,2.9968,166.91,166.85,6.5377]
[1730485663888,2.9968,166.91,166.85,3.54]
[1730485664292,11.53630003,166.94,166.85,3.54]
[1730485664483,2.9968,166.9,166.84,14.53410003]
[1730485664683,11.53630003,166.92,166.83,3.54]
[1730485666377,2.9973,166.88,166.83,3.54]
[1730485666985,57.13969721,166.95,166.84,11.53630003]
[1730485667189,0.97380634,166.94,166.84,11.53630003]
[1730485667387,57.13969721,166.95,166.84,11.53630003]
[1730485667685,2.9969,166.9,166.84,14.53410003]
[1730485668893,2.9969,166.9,166.84,11.53630003]
[1730485669095,2.9969,166.9,166.85,2.9977]
[1730485671395,2.9971,166.89,166.84,12.04960509]
[1730485672004,2.9971,166.89,166.84,15.04740509]
[1730485673198,57.13969721,166.95,166.86,11.53630003]
[1730485673199,45.60339718,166.95,166.86,11.53630003]
[1730485673399,45.60339718,166.95,166.88,11.53630003]
[1730485673590,45.60339718,166.95,166.88,15.07630003]
[1730485673802,2.9967,166.91,166.88,15.07630003]
[1730485673996,2.9967,166.91,166.88,3.54]
[1730485674402,2.9966,166.91,166.88,3.54]
[1730485675006,2.6206,166.96,166.89,11.53630003]
[1730485675206,2.6206,166.96,166.91,11.53630003]
[1730485675207,1.2762,166.96,166.91,11.53630003]
[1730485675704,2.9959,166.95,166.91,11.53630003]
[1730485680208,0.11134276,166.95,166.91,14.53280003]
[1730485680404,0.11134276,166.95,166.91,11.53630003]
[1730485680811,0.11134276,166.95,166.92,3.54]
[1730485681009,0.11134276,166.95,166.89,3.54]
[1730485681913,0.11134276,166.95,166.91,11.53630003]
[1730485682604,0.11134276,166.95,166.91,14.53280003]
[1730485682797,0.11134276,166.95,166.91,11.53630003]
[1730485683208,2.9963,166.94,166.91,11.53630003]
[1730485684312,2.9964,166.92,166.89,15.07630003]
[1730485684619,0.11134276,166.95,166.89,15.07630003]
[1730485684916,2.9963,166.93,166.89,15.07630003]
[1730485685109,0.11134276,166.95,166.89,15.07630003]
[1730485685509,0.11134276,166.95,166.88,3.54]
[1730485685510,2.9971,166.89,166.88,3.54]
[1730485685705,1.3457,166.94,166.88,3.54]
[1730485686109,2.997,166.89,166.88,3.54]
[1730485686304,1.3457,166.94,166.88,3.54]
[1730485686706,2.9969,166.9,166.88,3.54]
[1730485689516,2.9966,166.92,166.85,11.53630003]
[1730485689817,1.3457,166.94,166.85,11.53630003]
[1730485690012,1.3457,166.94,166.87,11.53630003]
[1730485691120,2.9967,166.91,166.87,14.53360003]
[1730485691711,2.9965,166.92,166.88,2.9972]
[1730485692210,2.9965,166.92,166.87,14.53360003]
[1730485693223,2.9967,166.91,166.87,14.53360003]
[1730485693419,1.3457,166.94,166.85,11.53630003]
[1730485694122,1.3457,166.94,166.85,14.53390003]
[1730485694123,2.9968,166.9,166.85,14.53390003]
[1730485694621,2.9968,166.9,166.86,3.54]
[1730485694819,2.997,166.89,166.86,3.54]
[1730485695207,1.3457,166.94,166.87,11.53630003]
[1730485695625,2.9966,166.92,166.87,11.53630003]
[1730485695816,1.3457,166.94,166.89,11.53630003]
[1730485696212,2.9963,166.93,166.89,11.53630003]
[1730485697425,2.9963,166.93,166.89,14.53330003]
[1730485697922,1.3457,166.94,166.89,11.53630003]
[1730485700214,2.9964,166.93,166.89,14.53330003]
[1730485700422,1.3457,166.94,166.89,11.53630003]
[1730485700621,0.11134276,166.95,166.89,11.53630003]
[1730485700821,3.10724276,166.95,166.9,2.9967]
[1730485701026,0.11134276,166.95,166.91,15.07630003]
[1730485701422,0.11134276,166.95,166.91,18.07280003]
[1730485704429,3.10724276,166.95,166.91,18.07280003]
[1730485706632,2.9961,166.94,166.91,18.07280003]
[1730485706833,0.11134276,166.95,166.91,15.07630003]
[1730485707231,2.9962,166.94,166.91,15.07630003]
[1730485707428,0.11134276,166.95,166.94,2.9961]
[1730485707933,0.11134276,166.95,166.93,11.53630003]
[1730485708132,0.11134276,166.95,166.93,14.53260003]
[1730485708729,0.11134276,166.95,166.94,7.36933265]
[1730485709336,0.14133029,166.96,166.94,7.36933265]
[1730485709636,0.14133029,166.96,166.95,2.9959]
[1730485710645,0.14133029,166.96,166.95,14.50723902]
[1730485716956,0.14133029,166.96,166.91,11.51133902]
[1730485717456,0.14133029,166.96,166.93,11.51133902]
[1730485717657,0.14133029,166.96,166.93,14.50753902]
[1730485718257,0.14133029,166.96,166.95,14.50723902]
[1730485718557,0.14133029,166.96,166.95,18.04723902]
[1730485720961,0.19033109,166.97,166.96,2.9957]
[1730485721258,0.30434958,166.98,166.95,15.05133902]
[1730485721458,0.30434958,166.98,166.97,11.51133902]
[1730485721658,0.30434958,166.98,166.97,14.50683902]
[1730485722460,0.40250954,167.01,166.97,11.51133902]
[1730485722659,0.40250954,167.01,167.0,11.51133902]
[1730485722856,0.40250954,167.01,167.0,15.05133902]
[1730485723258,0.40250954,167.01,167.0,18.04633902]
[1730485730366,0.60433421,167.03,167.02,2.9947]
[1730485730669,0.60433421,167.03,167.02,14.50603902]
[1730485732878,0.77031234,167.04,167.03,2.9945]
[1730485733067,0.60177916,167.05,167.02,11.51133902]
[1730485733374,0.60177916,167.05,167.04,11.51133902]
[1730485733572,0.60177916,167.05,167.04,14.50563902]
[1730485734472,0.60177916,167.05,167.04,10.35309619]
[1730485736369,0.85317474,167.07,167.06,2.9939]
[1730485736572,1.09512855,167.08,167.06,10.35269619]
[1730485737576,0.56357653,167.12,167.11,2.993]
[1730485737775,1.10977719,167.14,167.11,10.87879619]
[1730485738083,1.10977719,167.14,167.13,10.35149619]
[1730485738281,1.62244885,167.15,167.13,7.35879619]
[1730485738683,1.62244885,167.15,167.14,11.49880277]
[1730485740079,1.62244885,167.15,167.12,11.49880277]
[1730485740375,1.62244885,167.15,167.11,3.52]
[1730485740976,4.61494885,167.15,167.11,3.52]
[1730485743475,4.61494885,167.15,167.13,11.49880277]
[1730485743891,1.62244885,167.15,167.13,11.49880277]
[1730485744384,1.62244885,167.15,167.14,11.49880277]
[1730485748079,1.62244885,167.15,167.11,15.01880277]
[1730485748384,4.61484885,167.15,167.11,15.01880277]
[1730485748578,1.62244885,167.15,167.11,15.01880277]
[1730485749285,2.9931,167.11,167.09,11.49880277]
[1730485749587,1.62244885,167.15,167.08,3.52]
[1730485750182,2.9934,167.09,167.08,3.52]
[1730485750590,1.62244885,167.15,167.08,3.52]
[1730485750888,2.993,167.12,167.09,11.49880277]
[1730485751184,2.9926,167.14,167.09,11.49880277]
[1730485751390,1.62244885,167.15,167.09,11.49880277]
[1730485752076,1.62244885,167.15,167.08,3.52]
[1730485752602,2.9933,167.1,167.08,3.52]
[1730485753090,2.9934,167.09,167.08,3.52]
[1730485753289,1.62244885,167.15,167.06,3.52]
[1730485753687,2.9937,167.08,167.06,3.52]
[1730485753994,1.62244885,167.15,167.06,3.52]
[1730485754387,2.9937,167.08,167.06,3.52]
[1730485754793,2.9937,167.08,167.05,15.01880277]
[1730485755286,2.9939,167.07,167.05,15.01880277]
[1730485756090,7.60714885,167.15,167.05,15.01880277]
[1730485756292,2.9939,167.06,167.05,15.01880277]
[1730485759195,2.9935,167.09,167.05,18.01290277]
[1730485759502,5.14244885,167.15,167.07,11.49880277]
[1730485759705,2.9933,167.1,167.07,11.49880277]
[1730485759898,5.14244885,167.15,167.07,11.49880277]
[1730485760399,2.9932,167.1,167.07,11.49880277]
[1730485760702,1.62244885,167.15,167.02,15.01880277]
[1730485760703,11.49880277,167.14,167.02,15.01880277]
[1730485760892,2.9939,167.07,167.03,2.9943]
[1730485762205,2.9939,167.07,167.04,11.49880277]
[1730485762598,5.6563,167.09,167.05,2.9941]
[1730485762894,2.6628,167.09,167.06,11.49880277]
[1730485763100,5.6562,167.09,167.06,11.49880277]
[1730485763302,2.6628,167.09,167.06,14.49270277]
[1730485763599,2.6628,167.09,167.06,11.49880277]
[1730485763805,5.6562,167.09,167.06,11.49880277]
[1730485764208,2.6628,167.09,167.04,11.49880277]
[1730485764389,1.2654,167.08,167.0,15.01880277]
[1730485764912,1.2654,167.08,167.02,14.49340277]
[1730485765703,2.994,167.06,167.02,14.49340277]
[1730485766408,1.2654,167.08,167.02,14.49340277]
[1730485766605,2.9941,167.05,167.02,14.49340277]
[1730485766801,1.2654,167.08,167.0,11.49880277]
[1730485767008,2.9946,167.03,166.99,3.52]
[1730485767203,1.2654,167.08,166.98,11.49880277]
[1730485767406,11.49880277,167.07,166.98,11.49880277]
[1730485767615,2.9947,167.02,166.98,11.49880277]
[1730485767801,11.49880277,167.07,166.98,11.49880277]
[1730485768294,1.2654,167.08,166.96,3.52]
[1730485768295,11.49880277,167.05,166.96,3.52]
[1730485768498,11.49880277,167.07,166.96,3.52]
[1730485768710,3.52,167.06,166.97,11.49880277]
[1730485769310,3.52,167.06,166.97,14.49430277]
[1730485769512,3.52,167.06,166.97,11.49880277]
[1730485769810,3.52,167.06,166.98,2.9952]
[1730485770511,2.9948,167.01,166.97,14.49430277]
[1730485771007,11.49880277,167.07,166.97,11.49880277]
[1730485772010,2.9948,167.02,166.98,2.9953]
[1730485772607,2.995,167.01,166.97,11.49880277]
[1730485772811,11.49880277,167.05,166.96,3.52]
[1730485773315,2.9951,167.0,166.96,3.52]
[1730485773617,11.49880277,167.05,166.96,3.52]
[1730485773808,2.9949,167.01,166.97,14.49430277]
[1730485774009,11.49880277,167.07,166.97,11.49880277]
[1730485774419,2.9948,167.02,166.97,14.49430277]
[1730485775401,11.49880277,167.07,166.97,14.49430277]
[1730485775402,2.9949,167.01,166.97,14.49430277]
[1730485776223,2.9951,167.0,166.97,11.49880277]
[1730485777011,11.49880277,167.07,166.97,11.49880277]
[1730485777012,2.9949,167.01,166.97,11.49880277]
[1730485778915,11.49880277,167.07,166.97,11.49880277]
[1730485779119,11.49880277,167.07,166.98,2.9953]
[1730485779120,2.9947,167.02,166.98,2.9953]
[1730485779510,15.01880277,167.07,166.97,11.49880277]
[1730485779724,15.01880277,167.07,166.97,14.49430277]
[1730485780219,15.01880277,167.07,166.97,11.49880277]
[1730485780521,2.9951,167.0,166.97,11.49880277]
[1730485780718,2.9951,167.0,166.98,7.3663546]
[1730485781522,2.9952,166.99,166.98,7.3663546]
[1730485781720,2.9952,166.99,166.96,10.8863546]
[1730485782422,2.9952,166.99,166.96,7.3663546]
[1730485785519,2.995,167.01,166.98,7.3663546]
[1730485785721,7.3663546,167.04,166.98,7.3663546]
[1730485786216,7.3663546,167.03,166.98,7.3663546]
[1730485788220,2.9951,167.0,166.98,7.3663546]
[1730485791421,3.52,167.05,166.96,7.3663546]
[1730485791422,2.9953,166.99,166.96,7.3663546]
[1730485794039,2.9953,166.99,166.95,2.9958]
[1730485794040,2.9953,166.99,166.97,7.3663546]
[1730485795024,7.3663546,167.04,166.98,7.3663546]
[1730485795327,7.3663546,167.05,166.98,7.3663546]
[1730485795642,7.3663546,167.07,167.01,7.3663546]
[1730485796823,2.9946,167.03,167.0,7.3663546]
[1730485797026,7.3663546,167.03,166.99,7.3663546]
[1730485797224,7.3663546,167.02,166.98,3.52]
[1730485797521,2.9951,167.0,166.98,3.52]
[1730485798131,7.3663546,167.02,166.98,3.52]
[1730485798332,2.9952,166.99,166.98,3.52]
[1730485799625,2.9952,166.99,166.97,7.3663546]
[1730485800125,2.9948,167.02,166.97,7.3663546]
[1730485800325,7.3663546,167.03,166.97,7.3663546]
[1730485800534,7.3663546,167.01,166.97,7.3663546]
[1730485801129,2.7453,167.02,166.97,7.3663546]
[1730485801331,10.1116546,167.02,166.97,7.3663546]
[1730485801522,2.9954,166.99,166.96,7.3663546]
[1730485802030,10.1116546,167.02,166.96,7.3663546]
[1730485802333,7.3663546,167.0,166.96,7.3663546]
[1730485802523,10.1116546,167.02,166.96,7.3663546]
[1730485802720,10.1116546,167.02,166.88,1.49843373]
[1730485802721,7.3663546,166.99,166.93,7.3663546]
[1730485803122,2.9957,166.97,166.93,7.3663546]
[1730485803320,7.3663546,166.99,166.93,7.3663546]
[1730485804329,7.3663546,166.94,166.84,2.01192651]
[1730485804535,3.52,166.98,166.84,0.51330506]
[1730485804536,10.3638546,166.87,166.84,0.51330506]
[1730485804730,7.3663546,166.85,166.84,0.51330506]
[1730485805133,2.997,166.89,166.84,7.87965966]
[1730485805631,2.997,166.89,166.85,7.3663546]
[1730485806028,7.3663546,166.91,166.87,7.3663546]
[1730485806232,10.0356546,166.93,166.88,7.3663546]
[1730485806829,2.9966,166.92,166.88,7.3663546]
[1730485807037,7.3663546,166.91,166.86,7.3663546]
[1730485807424,7.3663546,166.91,166.86,10.3638546]
[1730485807638,2.9966,166.92,166.87,7.3663546]
[1730485807939,2.6693,166.93,166.91,2.9966]
[1730485808128,3.52,166.97,166.91,10.3629546]
[1730485808323,7.3663546,166.98,166.84,4.03330506]
[1730485808324,2.9958,166.96,166.93,7.3663546]
[1730485808836,7.3663546,166.98,166.93,7.3663546]
[1730485809135,2.9955,166.97,166.93,7.3663546]
[1730485809922,7.3663546,166.98,166.93,7.3663546]
[1730485810127,7.3663546,166.94,166.88,7.3663546]
[1730485810335,7.3663546,166.92,166.88,7.3663546]
[1730485810541,7.3663546,166.92,166.87,2.9973]
[1730485810542,2.9965,166.92,166.87,2.9973]
[1730485812035,2.9967,166.91,166.86,18.02940447]
[1730485812645,2.997,166.9,166.86,3.52]
[1730485812834,1.3419,166.92,166.85,2.9977]
[1730485813234,2.9968,166.9,166.86,2.9975]
[1730485813634,2.9969,166.9,166.84,12.02520953]
[1730485814635,2.9969,166.9,166.85,2.9976]
[1730485816238,2.9971,166.89,166.84,15.02300953]
[1730485816837,2.9971,166.89,166.85,2.9977]
[1730485818043,1.3419,166.92,166.84,12.02520953]
[1730485818239,2.9973,166.88,166.84,15.02290953]
[1730485819046,2.9969,166.9,166.85,2.9976]
[1730485819248,2.9969,166.9,166.84,12.02520953]
[1730485819943,2.9969,166.9,166.86,2.9974]
[1730485822147,1.3419,166.92,166.84,12.02520953]
[1730485822344,1.3419,166.92,166.88,2.9971]
[1730485823146,2.9966,166.91,166.88,2.9971]
[1730485823348,2.9966,166.91,166.87,2.9973]
[1730485823644,1.3419,166.92,166.86,11.51190447]
[1730485823844,2.9969,166.9,166.84,12.02520953]
[1730485824054,1.3419,166.92,166.84,12.02520953]
[1730485824262,2.9971,166.89,166.84,12.02520953]
[1730485824443,12.85380447,166.92,166.84,0.51330506]
[1730485825134,2.9973,166.88,166.84,0.51330506]
[1730485825339,11.51190447,166.9,166.84,0.51330506]
[1730485825747,2.9977,166.85,166.84,0.51330506]
[1730485825954,11.51190447,166.88,166.83,0.70463944]
[1730485826151,1.2939,166.87,166.83,0.70463944]
[1730485826355,2.9979,166.84,166.83,0.70463944]
[1730485829648,1.2559,166.86,166.81,0.68011237]
[1730485829649,11.51190447,166.85,166.81,0.68011237]
[1730485829948,11.51190447,166.85,166.8,0.93007637]
[1730485830146,2.9986,166.8,166.79,1.02724503]
[1730485831448,2.9988,166.79,166.78,0.82268164]
[1730485835955,2.9985,166.81,166.78,0.82268164]
[1730485836260,1.3456,166.82,166.78,0.82268164]
[1730485837150,2.9988,166.8,166.78,0.82268164]
[1730485837960,2.9988,166.79,166.78,0.82268164]
[1730485839258,1.3456,166.82,166.78,0.82268164]
[1730485839561,2.9984,166.81,166.78,0.82268164]
[1730485843866,1.3456,166.82,166.78,0.82268164]
[1730485844757,10.3756955,166.8,166.78,0.82268164]
[1730485845973,8.7225955,166.82,166.79,2.9988]
[1730485846261,8.7225955,166.82,166.78,0.82268164]
[1730485846663,11.7209955,166.82,166.78,0.82268164]
[1730485847568,2.9984,166.81,166.78,0.82268164]
[1730485847771,7.3769955,166.79,166.78,0.82268164]
[1730485848473,11.52867003,166.81,166.78,0.82268164]